[Event "Early-Titled-Tuesday-Blitz-March-19-2024"]
[Site "Chess.com"]
[Date "2024.03.19"]
[Round "2"]
[White "angelgab3"]
[Black "Robert_Chessmood"]
[Result "1/2-1/2"]
[WhiteElo "2682"]
[BlackElo "2978"]
[TimeControl "180+1"]
[EndTime "8:19:32 PDT"]
[Termination "Game drawn - insufficient material"]

1. e4 {[%clk 0:03:00.9]} 1... c6 {[%clk 0:02:58.8]} 2. d3 {[%clk 0:02:58.2]}
2... d5 {[%clk 0:02:57.5]} 3. Nd2 {[%clk 0:02:59.1]} 3... e5 {[%clk 0:02:57.3]}
4. Ngf3 {[%clk 0:02:59.7]} 4... Bd6 {[%clk 0:02:57.5]} 5. d4 {[%clk 0:03:00.3]}
5... exd4 {[%clk 0:02:54.1]} 6. Bd3 {[%clk 0:03:01]} 6... dxe4 {[%clk
0:02:38.3]} 7. Nxe4 {[%clk 0:03:01.9]} 7... Nf6 {[%clk 0:02:37.3]} 8. Nxf6+
{[%clk 0:03:02.6]} 8... Qxf6 {[%clk 0:02:35.5]} 9. O-O {[%clk 0:03:03.5]} 9...
Bg4 {[%clk 0:02:18.7]} 10. Re1+ {[%clk 0:02:53.5]} 10... Kf8 {[%clk 0:02:18.6]}
11. Be4 {[%clk 0:02:04.1]} 11... Na6 {[%clk 0:02:01.5]} 12. Qxd4 {[%clk
0:01:53]} 12... Qxd4 {[%clk 0:01:54.8]} 13. Nxd4 {[%clk 0:01:53.9]} 13... Re8
{[%clk 0:01:54.4]} 14. Bd2 {[%clk 0:01:47.4]} 14... Be5 {[%clk 0:01:27.7]} 15.
Nf3 {[%clk 0:00:56.1]} 15... Bf6 {[%clk 0:01:17.8]} 16. h3 {[%clk 0:00:53.6]}
16... Be6 {[%clk 0:01:08.6]} 17. a4 {[%clk 0:00:44.9]} 17... Nc5 {[%clk
0:01:02]} 18. Bb4 {[%clk 0:00:42.5]} 18... Be7 {[%clk 0:01:02.5]} 19. Ng5 {[%clk
0:00:31.5]} 19... Nxe4 {[%clk 0:00:48.8]} 20. Nxe6+ {[%clk 0:00:30.7]} 20...
fxe6 {[%clk 0:00:48.6]} 21. Rxe4 {[%clk 0:00:30.6]} 21... Kf7 {[%clk 0:00:43.9]}
22. Rae1 {[%clk 0:00:27.1]} 22... Bxb4 {[%clk 0:00:26.6]} 23. Rxb4 {[%clk
0:00:28]} 23... Re7 {[%clk 0:00:27.1]} 24. Rd1 {[%clk 0:00:24.3]} 24... e5
{[%clk 0:00:22]} 25. Rd6 {[%clk 0:00:20.1]} 25... Rhe8 {[%clk 0:00:20.6]} 26.
Rb3 {[%clk 0:00:20.1]} 26... e4 {[%clk 0:00:17.1]} 27. Kf1 {[%clk 0:00:19.1]}
27... a5 {[%clk 0:00:13.9]} 28. Ke2 {[%clk 0:00:19.4]} 28... h6 {[%clk
0:00:13.3]} 29. Ke3 {[%clk 0:00:19]} 29... Kg8 {[%clk 0:00:13.4]} 30. Rc3 {[%clk
0:00:19.1]} 30... Re5 {[%clk 0:00:12.6]} 31. Rc4 {[%clk 0:00:18.1]} 31... R8e7
{[%clk 0:00:12.1]} 32. Rdd4 {[%clk 0:00:17.8]} 32... b5 {[%clk 0:00:11.2]} 33.
axb5 {[%clk 0:00:18.7]} 33... Rxb5 {[%clk 0:00:11.7]} 34. b3 {[%clk 0:00:18.3]}
34... Kh7 {[%clk 0:00:09.3]} 35. Rxe4 {[%clk 0:00:18.3]} 35... Rc7 {[%clk
0:00:10]} 36. Re6 {[%clk 0:00:18.1]} 36... c5 {[%clk 0:00:10.5]} 37. Re5 {[%clk
0:00:17.9]} 37... Kg6 {[%clk 0:00:08]} 38. Kd3 {[%clk 0:00:17.9]} 38... Kh7
{[%clk 0:00:07.4]} 39. Kc3 {[%clk 0:00:17.9]} 39... Kg6 {[%clk 0:00:07.3]} 40.
Kb2 {[%clk 0:00:18.3]} 40... Kh7 {[%clk 0:00:07.5]} 41. Ka3 {[%clk 0:00:18.9]}
41... Kg6 {[%clk 0:00:07.2]} 42. Ka4 {[%clk 0:00:19.5]} 42... Rb4+ {[%clk
0:00:07.7]} 43. Rxb4 {[%clk 0:00:19.6]} 43... cxb4 {[%clk 0:00:08.4]} 44. Kxa5
{[%clk 0:00:14.7]} 44... Rxc2 {[%clk 0:00:08.4]} 45. Re3 {[%clk 0:00:11.8]}
45... Rxf2 {[%clk 0:00:06.3]} 46. Rg3+ {[%clk 0:00:12.4]} 46... Kh7 {[%clk
0:00:03.5]} 47. Kxb4 {[%clk 0:00:12.9]} 47... g5 {[%clk 0:00:04.2]} 48. Kb5
{[%clk 0:00:13.2]} 48... Kg6 {[%clk 0:00:03.9]} 49. h4 {[%clk 0:00:13.5]} 49...
Kh5 {[%clk 0:00:03]} 50. hxg5 {[%clk 0:00:13.9]} 50... hxg5 {[%clk 0:00:03.9]}
51. Kb6 {[%clk 0:00:12.9]} 51... g4 {[%clk 0:00:04]} 52. b4 {[%clk 0:00:12.6]}
52... Kh4 {[%clk 0:00:04.5]} 53. Rd3 {[%clk 0:00:12.9]} 53... Rxg2 {[%clk
0:00:04.8]} 54. b5 {[%clk 0:00:13.4]} 54... g3 {[%clk 0:00:04.5]} 55. Kb7 {[%clk
0:00:12.4]} 55... Rb2 {[%clk 0:00:03.8]} 56. b6 {[%clk 0:00:09.9]} 56... g2
{[%clk 0:00:04.3]} 57. Rd1 {[%clk 0:00:10.1]} 57... Rf2 {[%clk 0:00:03.5]} 58.
Rg1 {[%clk 0:00:04.7]} 58... Kh3 {[%clk 0:00:03.5]} 59. Kc7 {[%clk 0:00:04.3]}
59... Rc2+ {[%clk 0:00:03.7]} 60. Kb8 {[%clk 0:00:03.7]} 60... Kh2 {[%clk
0:00:03.4]} 61. Rxg2+ {[%clk 0:00:04.2]} 61... Kxg2 {[%clk 0:00:04.3]} 62. b7
{[%clk 0:00:04.8]} 62... Kf3 {[%clk 0:00:04.9]} 63. Ka8 {[%clk 0:00:03.2]} 63...
Ra2+ {[%clk 0:00:04.9]} 64. Kb8 {[%clk 0:00:02.9]} 64... Ke4 {[%clk 0:00:05.8]}
65. Kc7 {[%clk 0:00:03.8]} 65... Rc2+ {[%clk 0:00:05.9]} 66. Kd8 {[%clk
0:00:03.8]} 66... Rb2 {[%clk 0:00:04.8]} 67. Kc8 {[%clk 0:00:04.5]} 67... Rc2+
{[%clk 0:00:04.9]} 68. Kd8 {[%clk 0:00:04.9]} 68... Rh2 {[%clk 0:00:04.6]} 69.
b8=Q {[%clk 0:00:04.7]} 69... Rh8+ {[%clk 0:00:04.3]} 70. Kc7 {[%clk 0:00:05.6]}
70... Rxb8 {[%clk 0:00:04.8]} 71. Kxb8 {[%clk 0:00:06.5]} 1/2-1/2

[Event "Early-Titled-Tuesday-Blitz-March-19-2024"]
[Site "Chess.com"]
[Date "2024.03.19"]
[Round "2"]
[White "AsselLesbekova"]
[Black "Golubovsky"]
[Result "0-1"]
[WhiteElo "2292"]
[BlackElo "2534"]
[TimeControl "180+1"]
[EndTime "8:19:44 PDT"]
[Termination "Golubovsky won by resignation"]

1. e4 {[%clk 0:03:00.9]} 1... c5 {[%clk 0:02:59.9]} 2. Nf3 {[%clk 0:03:00.9]}
2... d6 {[%clk 0:02:59.8]} 3. Bb5+ {[%clk 0:03:00.8]} 3... Nd7 {[%clk
0:02:59.2]} 4. O-O {[%clk 0:03:00.2]} 4... Nf6 {[%clk 0:02:59.3]} 5. Qe2 {[%clk
0:03:00.4]} 5... a6 {[%clk 0:02:59.2]} 6. Bxd7+ {[%clk 0:02:59.9]} 6... Bxd7
{[%clk 0:02:55.6]} 7. c3 {[%clk 0:03:00.4]} 7... Bc6 {[%clk 0:02:44.2]} 8. d3
{[%clk 0:02:57]} 8... g6 {[%clk 0:02:39.3]} 9. Rd1 {[%clk 0:02:49.7]} 9... Bg7
{[%clk 0:02:38.3]} 10. Nbd2 {[%clk 0:02:49.1]} 10... O-O {[%clk 0:02:38.1]} 11.
d4 {[%clk 0:02:36.6]} 11... cxd4 {[%clk 0:02:34.9]} 12. cxd4 {[%clk 0:02:37.5]}
12... d5 {[%clk 0:02:34.6]} 13. e5 {[%clk 0:02:25.6]} 13... Ne4 {[%clk
0:02:34.4]} 14. Nxe4 {[%clk 0:02:21.9]} 14... dxe4 {[%clk 0:02:34.7]} 15. Ng5
{[%clk 0:02:21.7]} 15... Qd5 {[%clk 0:02:30.9]} 16. Be3 {[%clk 0:02:13]} 16...
f6 {[%clk 0:02:19.5]} 17. exf6 {[%clk 0:02:06.5]} 17... exf6 {[%clk 0:02:15.3]}
18. Nh3 {[%clk 0:02:05.8]} 18... g5 {[%clk 0:02:08.2]} 19. Rac1 {[%clk 0:01:57]}
19... b6 {[%clk 0:01:53.5]} 20. Qc4 {[%clk 0:01:52.7]} 20... Rfc8 {[%clk
0:01:49.3]} 21. b3 {[%clk 0:01:46.8]} 21... h6 {[%clk 0:01:47.9]} 22. g4 {[%clk
0:01:29.4]} 22... Kh7 {[%clk 0:01:40.1]} 23. Qxd5 {[%clk 0:01:28.6]} 23... Bxd5
{[%clk 0:01:39.2]} 24. Kg2 {[%clk 0:01:27.3]} 24... Be6 {[%clk 0:01:30.3]} 25.
Kg3 {[%clk 0:01:27.1]} 25... Bf8 {[%clk 0:01:30.5]} 26. Ng1 {[%clk 0:01:04.4]}
26... Bd6+ {[%clk 0:01:28.5]} 27. f4 {[%clk 0:01:00.2]} 27... exf3+ {[%clk
0:01:20.8]} 28. Kxf3 {[%clk 0:01:00.1]} 28... Bd5+ {[%clk 0:01:20.9]} 29. Kf2
{[%clk 0:00:49.8]} 29... Re8 {[%clk 0:01:19.8]} 30. h3 {[%clk 0:00:31.3]} 30...
Ra7 {[%clk 0:01:08.5]} 31. Re1 {[%clk 0:00:27.5]} 31... Re4 {[%clk 0:00:57.4]}
32. Nf3 {[%clk 0:00:22.8]} 32... Rae7 {[%clk 0:00:54.9]} 33. Bd2 {[%clk
0:00:21.3]} 33... Kg6 {[%clk 0:00:50]} 34. Rxe4 {[%clk 0:00:15.7]} 34... Bxe4
{[%clk 0:00:46]} 35. Re1 {[%clk 0:00:15.3]} 35... h5 {[%clk 0:00:43.7]} 36. Bc3
{[%clk 0:00:10.4]} 36... hxg4 {[%clk 0:00:24.7]} 37. hxg4 {[%clk 0:00:10.2]}
37... f5 {[%clk 0:00:19.5]} 38. gxf5+ {[%clk 0:00:09.6]} 38... Kxf5 {[%clk
0:00:19.6]} 39. Nd2 {[%clk 0:00:09.7]} 39... g4 {[%clk 0:00:10.8]} 40. Nc4
{[%clk 0:00:03.5]} 40... g3+ {[%clk 0:00:09.5]} 41. Kg1 {[%clk 0:00:03.9]} 41...
Bf4 {[%clk 0:00:06.7]} 42. Ne3+ {[%clk 0:00:03.6]} 42... Bxe3+ {[%clk
0:00:04.9]} 43. Rxe3 {[%clk 0:00:04.5]} 43... Kf4 {[%clk 0:00:04.2]} 44. Bd2
{[%clk 0:00:04.9]} 44... Kg4 {[%clk 0:00:04.6]} 45. Re1 {[%clk 0:00:03.6]} 45...
Kf5 {[%clk 0:00:03.3]} 46. Re3 {[%clk 0:00:03.4]} 46... Rh7 {[%clk 0:00:02.4]}
47. Rxg3 {[%clk 0:00:02.8]} 47... Rh1+ {[%clk 0:00:02.5]} 48. Kf2 {[%clk
0:00:03.5]} 48... Ra1 {[%clk 0:00:01.9]} 49. Rg5+ {[%clk 0:00:02.8]} 49... Kf6
{[%clk 0:00:02.6]} 50. Re5 {[%clk 0:00:03.2]} 50... Bf5 {[%clk 0:00:02.2]} 51.
Ke3 {[%clk 0:00:04.1]} 51... Rxa2 {[%clk 0:00:02.7]} 52. Bc3 {[%clk 0:00:03.6]}
52... Ra3 {[%clk 0:00:01.6]} 53. b4 {[%clk 0:00:04]} 53... Rxc3+ {[%clk
0:00:01.6]} 54. Kf4 {[%clk 0:00:04.9]} 54... Rc4 {[%clk 0:00:01.9]} 55. Rxf5+
{[%clk 0:00:05.3]} 55... Ke6 {[%clk 0:00:02.4]} 56. Re5+ {[%clk 0:00:05.9]}
56... Kd6 {[%clk 0:00:03.1]} 57. Ke4 {[%clk 0:00:06.1]} 57... Rxb4 {[%clk
0:00:03.7]} 58. Rd5+ {[%clk 0:00:05.6]} 58... Kc6 {[%clk 0:00:03.7]} 59. Rh5
{[%clk 0:00:06.4]} 59... a5 {[%clk 0:00:04.1]} 60. Rh6+ {[%clk 0:00:07.2]} 60...
Kb7 {[%clk 0:00:04.7]} 61. Rh7+ {[%clk 0:00:06.5]} 61... Kc6 {[%clk 0:00:05.3]}
62. Rh6+ {[%clk 0:00:06.4]} 62... Kb5 {[%clk 0:00:06]} 63. Ke5 {[%clk
0:00:06.1]} 63... Rb1 {[%clk 0:00:02.9]} 64. Rh4 {[%clk 0:00:04.9]} 64... a4
{[%clk 0:00:03]} 65. d5 {[%clk 0:00:04.9]} 65... a3 {[%clk 0:00:02.6]} 66. Rh2
{[%clk 0:00:04.3]} 66... Rb2 {[%clk 0:00:01.8]} 67. d6 {[%clk 0:00:04.7]} 67...
Rxh2 {[%clk 0:00:01.7]} 68. d7 {[%clk 0:00:05.6]} 68... Rd2 {[%clk 0:00:02.3]}
69. d8=Q {[%clk 0:00:06.5]} 69... Rxd8 {[%clk 0:00:02.7]} 70. Ke6 {[%clk
0:00:07.4]} 70... Rc8 {[%clk 0:00:03.1]} 71. Ke7 {[%clk 0:00:08.3]} 71... Rc5
{[%clk 0:00:04]} 72. Kd7 {[%clk 0:00:09.2]} 72... a2 {[%clk 0:00:04.9]} 73. Kd6
{[%clk 0:00:10.1]} 73... a1=Q {[%clk 0:00:05.8]} 74. Ke6 {[%clk 0:00:11]} 74...
Qd4 {[%clk 0:00:05.9]} 0-1

[Event "Early-Titled-Tuesday-Blitz-March-19-2024"]
[Site "Chess.com"]
[Date "2024.03.19"]
[Round "2"]
[White "Willhaven3"]
[Black "gpsji27"]
[Result "0-1"]
[WhiteElo "2542"]
[BlackElo "2350"]
[TimeControl "180+1"]
[EndTime "8:19:55 PDT"]
[Termination "gpsji27 won on time"]

1. e4 {[%clk 0:03:00.9]} 1... e5 {[%clk 0:02:59.6]} 2. f4 {[%clk 0:03:00.7]}
2... exf4 {[%clk 0:02:58.6]} 3. Nf3 {[%clk 0:03:00.6]} 3... d5 {[%clk
0:02:58.7]} 4. exd5 {[%clk 0:03:00.5]} 4... Be7 {[%clk 0:02:53.6]} 5. Bc4 {[%clk
0:02:36.9]} 5... Bh4+ {[%clk 0:02:48.1]} 6. Kf1 {[%clk 0:02:30]} 6... Nh6 {[%clk
0:02:35.2]} 7. Nc3 {[%clk 0:02:28.3]} 7... O-O {[%clk 0:02:16.8]} 8. d4 {[%clk
0:02:28.3]} 8... Ng4 {[%clk 0:01:58.2]} 9. Bxf4 {[%clk 0:02:02.7]} 9... Nf2
{[%clk 0:01:56.7]} 10. Qd2 {[%clk 0:02:02.8]} 10... Nxh1 {[%clk 0:01:56.4]} 11.
g3 {[%clk 0:01:35]} 11... Bh3+ {[%clk 0:01:51.6]} 12. Kg1 {[%clk 0:01:34.7]}
12... Nxg3 {[%clk 0:01:44.1]} 13. hxg3 {[%clk 0:01:35.1]} 13... Bf6 {[%clk
0:01:44.2]} 14. Ne4 {[%clk 0:01:25.6]} 14... Nd7 {[%clk 0:01:37.5]} 15. Bb3
{[%clk 0:01:23.3]} 15... Re8 {[%clk 0:01:23.6]} 16. Nf2 {[%clk 0:01:18.2]} 16...
Bf5 {[%clk 0:01:20.3]} 17. c4 {[%clk 0:01:18.5]} 17... Be4 {[%clk 0:01:17.3]}
18. Nxe4 {[%clk 0:01:15.9]} 18... Rxe4 {[%clk 0:01:11.9]} 19. Bc2 {[%clk
0:01:15.2]} 19... Re8 {[%clk 0:01:10.6]} 20. Kg2 {[%clk 0:01:09.1]} 20... g6
{[%clk 0:01:00.3]} 21. Rh1 {[%clk 0:00:59.6]} 21... Qe7 {[%clk 0:00:55.2]} 22.
Bd3 {[%clk 0:00:58.8]} 22... Nf8 {[%clk 0:00:41.3]} 23. Ne5 {[%clk 0:00:56.5]}
23... Rad8 {[%clk 0:00:16.1]} 24. Ng4 {[%clk 0:00:46.8]} 24... Bg7 {[%clk
0:00:15.6]} 25. Bh6 {[%clk 0:00:45]} 25... f5 {[%clk 0:00:14.8]} 26. Bxg7 {[%clk
0:00:42.9]} 26... fxg4 {[%clk 0:00:08.3]} 27. Be5 {[%clk 0:00:41.3]} 27... Qf7
{[%clk 0:00:07.7]} 28. Bf4 {[%clk 0:00:41.3]} 28... Rd7 {[%clk 0:00:06.7]} 29.
Qd1 {[%clk 0:00:34.6]} 29... Rde7 {[%clk 0:00:07.3]} 30. Qxg4 {[%clk 0:00:34.6]}
30... Nd7 {[%clk 0:00:07.3]} 31. Bg5 {[%clk 0:00:27.2]} 31... Re1 {[%clk
0:00:05]} 32. Rxe1 {[%clk 0:00:20.2]} 32... Rxe1 {[%clk 0:00:05.9]} 33. Bf4
{[%clk 0:00:19.4]} 33... Re8 {[%clk 0:00:06.2]} 34. d6 {[%clk 0:00:17.4]} 34...
Nf6 {[%clk 0:00:06.8]} 35. Qf3 {[%clk 0:00:17.5]} 35... cxd6 {[%clk 0:00:07.5]}
36. Bxd6 {[%clk 0:00:14.8]} 36... Rd8 {[%clk 0:00:07.8]} 37. Be5 {[%clk
0:00:15.1]} 37... Nd7 {[%clk 0:00:08.3]} 38. Bf4 {[%clk 0:00:15]} 38... Re8
{[%clk 0:00:08.5]} 39. d5 {[%clk 0:00:15.3]} 39... Ne5 {[%clk 0:00:08.5]} 40.
Bxe5 {[%clk 0:00:14.4]} 40... Qxf3+ {[%clk 0:00:09.4]} 41. Kxf3 {[%clk
0:00:14.7]} 41... Rxe5 {[%clk 0:00:10.3]} 42. Be4 {[%clk 0:00:14.3]} 42... Re8
{[%clk 0:00:10.5]} 43. c5 {[%clk 0:00:13.2]} 43... Kf7 {[%clk 0:00:10.4]} 44. b3
{[%clk 0:00:13]} 44... Ke7 {[%clk 0:00:10.5]} 45. b4 {[%clk 0:00:13.5]} 45...
Kd7 {[%clk 0:00:10.7]} 46. Kf4 {[%clk 0:00:13.9]} 46... Rf8+ {[%clk 0:00:11.2]}
47. Ke3 {[%clk 0:00:14]} 47... Rf1 {[%clk 0:00:11.2]} 48. g4 {[%clk 0:00:14.3]}
48... Re1+ {[%clk 0:00:11.2]} 49. Kd4 {[%clk 0:00:14.4]} 49... Rd1+ {[%clk
0:00:11.4]} 50. Kc3 {[%clk 0:00:14.1]} 50... Re1 {[%clk 0:00:11.2]} 51. Kd4
{[%clk 0:00:14.1]} 51... Rg1 {[%clk 0:00:08.7]} 52. Bf3 {[%clk 0:00:11.9]} 52...
Rb1 {[%clk 0:00:08.6]} 53. Kc4 {[%clk 0:00:10.6]} 53... Rc1+ {[%clk 0:00:08.5]}
54. Kd4 {[%clk 0:00:10.6]} 54... Rc2 {[%clk 0:00:08.4]} 55. a3 {[%clk
0:00:10.7]} 55... Rf2 {[%clk 0:00:08.6]} 56. Be4 {[%clk 0:00:10.7]} 56... Rf4
{[%clk 0:00:08.8]} 57. Ke5 {[%clk 0:00:10.7]} 57... Rxg4 {[%clk 0:00:09.1]} 58.
b5 {[%clk 0:00:11.6]} 58... Rg5+ {[%clk 0:00:09.1]} 59. Kd4 {[%clk 0:00:11.6]}
59... Rg1 {[%clk 0:00:09.9]} 60. c6+ {[%clk 0:00:12.5]} 60... bxc6 {[%clk
0:00:09.9]} 61. dxc6+ {[%clk 0:00:11.4]} 61... Kd6 {[%clk 0:00:10.6]} 62. Bd3
{[%clk 0:00:11.5]} 62... Rd1 {[%clk 0:00:11]} 63. Ke3 {[%clk 0:00:11.4]} 63...
g5 {[%clk 0:00:11.4]} 64. Bxh7 {[%clk 0:00:10.9]} 64... Rc1 {[%clk 0:00:10.9]}
65. Be4 {[%clk 0:00:10.9]} 65... Kc7 {[%clk 0:00:11]} 66. a4 {[%clk 0:00:10.6]}
66... Rc4 {[%clk 0:00:11.1]} 67. a5 {[%clk 0:00:08.9]} 67... Ra4 {[%clk
0:00:10.7]} 68. Bd3 {[%clk 0:00:07.6]} 68... Rxa5 {[%clk 0:00:10.8]} 69. Ke4
{[%clk 0:00:08]} 69... Ra4+ {[%clk 0:00:11.1]} 70. Kf3 {[%clk 0:00:07.2]} 70...
g4+ {[%clk 0:00:11.7]} 71. Ke3 {[%clk 0:00:06.9]} 71... g3 {[%clk 0:00:11.3]}
72. Be2 {[%clk 0:00:06.8]} 72... Ra3+ {[%clk 0:00:10.1]} 73. Kd2 {[%clk
0:00:05]} 73... g2 {[%clk 0:00:10.1]} 0-1

[Event "Early-Titled-Tuesday-Blitz-March-19-2024"]
[Site "Chess.com"]
[Date "2024.03.19"]
[Round "2"]
[White "AlexandraSamaganova"]
[Black "ketster"]
[Result "1/2-1/2"]
[WhiteElo "2320"]
[BlackElo "2537"]
[TimeControl "180+1"]
[EndTime "8:21:19 PDT"]
[Termination "Game drawn - insufficient material"]

1. c4 {[%clk 0:03:00.9]} 1... Nf6 {[%clk 0:02:57.5]} 2. Nc3 {[%clk 0:02:58.6]}
2... e5 {[%clk 0:02:56.9]} 3. Nf3 {[%clk 0:02:57.8]} 3... e4 {[%clk 0:02:56.7]}
4. Ng5 {[%clk 0:02:57.5]} 4... Qe7 {[%clk 0:02:56.5]} 5. Qc2 {[%clk 0:02:51.2]}
5... d5 {[%clk 0:02:56.7]} 6. cxd5 {[%clk 0:02:44.8]} 6... Bf5 {[%clk
0:02:54.3]} 7. Qb3 {[%clk 0:02:20.8]} 7... Qb4 {[%clk 0:02:40.4]} 8. Qxb4 {[%clk
0:02:06.6]} 8... Bxb4 {[%clk 0:02:41.3]} 9. f3 {[%clk 0:02:00.2]} 9... Bxc3
{[%clk 0:02:31.8]} 10. bxc3 {[%clk 0:01:54]} 10... h6 {[%clk 0:02:32]} 11. Nxe4
{[%clk 0:01:53.2]} 11... Nxe4 {[%clk 0:02:31.8]} 12. fxe4 {[%clk 0:01:52.8]}
12... Bxe4 {[%clk 0:02:32.7]} 13. c4 {[%clk 0:01:46]} 13... Nd7 {[%clk 0:02:17]}
14. d3 {[%clk 0:01:44.1]} 14... Bg6 {[%clk 0:02:16.4]} 15. Ba3 {[%clk
0:01:41.7]} 15... O-O-O {[%clk 0:02:14.6]} 16. O-O-O {[%clk 0:01:37.4]} 16...
Rhe8 {[%clk 0:02:06.2]} 17. Rd2 {[%clk 0:01:24.7]} 17... Ne5 {[%clk 0:01:55.4]}
18. h3 {[%clk 0:01:15.4]} 18... f5 {[%clk 0:01:42.9]} 19. g3 {[%clk 0:01:06.2]}
19... Bh5 {[%clk 0:01:23.3]} 20. Bg2 {[%clk 0:00:55.3]} 20... g5 {[%clk
0:01:23.3]} 21. Rf1 {[%clk 0:00:50.7]} 21... Bg6 {[%clk 0:01:13.7]} 22. Kb2
{[%clk 0:00:39.8]} 22... b6 {[%clk 0:01:02.3]} 23. Kc3 {[%clk 0:00:37.9]} 23...
a5 {[%clk 0:00:58]} 24. Rb1 {[%clk 0:00:25.4]} 24... Nd7 {[%clk 0:00:49.7]} 25.
Kd4 {[%clk 0:00:21.7]} 25... Re5 {[%clk 0:00:37.9]} 26. e4 {[%clk 0:00:17.6]}
26... Rde8 {[%clk 0:00:36.2]} 27. Re1 {[%clk 0:00:15.3]} 27... fxe4 {[%clk
0:00:32.2]} 28. dxe4 {[%clk 0:00:16.2]} 28... Nf6 {[%clk 0:00:28.3]} 29. Rde2
{[%clk 0:00:13.5]} 29... b5 {[%clk 0:00:24.3]} 30. Bc5 {[%clk 0:00:03.5]} 30...
bxc4 {[%clk 0:00:21.2]} 31. Kxc4 {[%clk 0:00:04.4]} 31... Nxd5 {[%clk
0:00:20.9]} 32. Bd4 {[%clk 0:00:03.9]} 32... Nb6+ {[%clk 0:00:19.1]} 33. Kd3
{[%clk 0:00:03.9]} 33... R5e7 {[%clk 0:00:17.4]} 34. Bxb6 {[%clk 0:00:03.9]}
34... cxb6 {[%clk 0:00:17.4]} 35. Kd4 {[%clk 0:00:03.7]} 35... Rd7+ {[%clk
0:00:16.7]} 36. Kc3 {[%clk 0:00:04.1]} 36... Re5 {[%clk 0:00:15.5]} 37. Re3
{[%clk 0:00:03.4]} 37... Rde7 {[%clk 0:00:14.9]} 38. Kd4 {[%clk 0:00:03.8]}
38... Kc7 {[%clk 0:00:14]} 39. g4 {[%clk 0:00:04.2]} 39... Bf7 {[%clk
0:00:10.9]} 40. a3 {[%clk 0:00:03.8]} 40... b5 {[%clk 0:00:11.1]} 41. Rc1+
{[%clk 0:00:03.3]} 41... Kb6 {[%clk 0:00:11.1]} 42. Rf1 {[%clk 0:00:03]} 42...
Bc4 {[%clk 0:00:09.8]} 43. Rf6+ {[%clk 0:00:02.6]} 43... R5e6 {[%clk 0:00:10.3]}
44. Rxe6+ {[%clk 0:00:03.1]} 44... Rxe6 {[%clk 0:00:11.2]} 45. e5 {[%clk
0:00:03.7]} 45... a4 {[%clk 0:00:10.5]} 46. Be4 {[%clk 0:00:03.8]} 46... Re8
{[%clk 0:00:08.1]} 47. Bf5 {[%clk 0:00:03.9]} 47... Rd8+ {[%clk 0:00:08.5]} 48.
Kc3 {[%clk 0:00:04.5]} 48... Kc5 {[%clk 0:00:07.6]} 49. e6 {[%clk 0:00:04.5]}
49... Kd6 {[%clk 0:00:05.8]} 50. Kb4 {[%clk 0:00:02.7]} 50... Re8 {[%clk
0:00:05.5]} 51. Re4 {[%clk 0:00:02.4]} 51... Ke7 {[%clk 0:00:04.6]} 52. Re3
{[%clk 0:00:02.4]} 52... Rd8 {[%clk 0:00:04.6]} 53. Re1 {[%clk 0:00:02.9]} 53...
Rd2 {[%clk 0:00:04.7]} 54. Kc5 {[%clk 0:00:03.1]} 54... Rd5+ {[%clk 0:00:04.4]}
55. Kb4 {[%clk 0:00:03.1]} 55... Rd2 {[%clk 0:00:04.4]} 56. Kc5 {[%clk
0:00:02.7]} 56... Ra2 {[%clk 0:00:02.8]} 57. Kb4 {[%clk 0:00:02.9]} 57... Rb2+
{[%clk 0:00:03]} 58. Kc5 {[%clk 0:00:03.5]} 58... Rb3 {[%clk 0:00:03.9]} 59. Rd1
{[%clk 0:00:04]} 59... Bxe6 {[%clk 0:00:03.4]} 60. Re1 {[%clk 0:00:04.2]} 60...
Rxa3 {[%clk 0:00:03]} 61. Rxe6+ {[%clk 0:00:04.1]} 61... Kf7 {[%clk 0:00:03.4]}
62. Kxb5 {[%clk 0:00:04.6]} 62... Rxh3 {[%clk 0:00:03.2]} 63. Ra6 {[%clk
0:00:04.1]} 63... a3 {[%clk 0:00:03]} 64. Kc5 {[%clk 0:00:04.2]} 64... Kg7
{[%clk 0:00:03]} 65. Kd5 {[%clk 0:00:04.6]} 65... h5 {[%clk 0:00:03.6]} 66. gxh5
{[%clk 0:00:03.9]} 66... Rxh5 {[%clk 0:00:04.3]} 67. Ke5 {[%clk 0:00:04.3]}
67... Rh2 {[%clk 0:00:02.6]} 68. Ra7+ {[%clk 0:00:04.1]} 68... Kf8 {[%clk
0:00:02.2]} 69. Rxa3 {[%clk 0:00:04]} 69... Re2+ {[%clk 0:00:02.4]} 70. Kf6
{[%clk 0:00:04.5]} 70... Re8 {[%clk 0:00:01.4]} 71. Kxg5 {[%clk 0:00:04.8]}
71... Ke7 {[%clk 0:00:01.6]} 72. Re3+ {[%clk 0:00:04.2]} 72... Kd8 {[%clk
0:00:02.1]} 73. Rd3+ {[%clk 0:00:04.7]} 73... Kc7 {[%clk 0:00:02.6]} 74. Rd7+
{[%clk 0:00:04.9]} 74... Kb6 {[%clk 0:00:03.1]} 75. Kf6 {[%clk 0:00:05.4]} 75...
Re2 {[%clk 0:00:03]} 76. Be6 {[%clk 0:00:05.4]} 76... Kc5 {[%clk 0:00:03.4]} 77.
Ke7 {[%clk 0:00:05.7]} 77... Kb4 {[%clk 0:00:03.9]} 78. Rd4+ {[%clk 0:00:05.8]}
78... Kc3 {[%clk 0:00:03.9]} 79. Rc4+ {[%clk 0:00:06]} 79... Kd2 {[%clk
0:00:04.3]} 80. Rd4+ {[%clk 0:00:06]} 80... Kc3 {[%clk 0:00:04.6]} 81. Rc4+
{[%clk 0:00:06.3]} 81... Kd2 {[%clk 0:00:04.6]} 82. Rh4 {[%clk 0:00:07.2]} 82...
Rf2 {[%clk 0:00:04.2]} 83. Kd6 {[%clk 0:00:07.6]} 83... Re2 {[%clk 0:00:03.9]}
84. Bd5 {[%clk 0:00:07.7]} 84... Rf2 {[%clk 0:00:04.3]} 85. Ke5 {[%clk
0:00:07.7]} 85... Re2+ {[%clk 0:00:04.7]} 86. Kd4 {[%clk 0:00:08]} 86... Rf2
{[%clk 0:00:05.3]} 87. Rh8 {[%clk 0:00:07.4]} 87... Rf4+ {[%clk 0:00:04.5]} 88.
Be4 {[%clk 0:00:07.4]} 88... Rf2 {[%clk 0:00:05.2]} 89. Ra8 {[%clk 0:00:07.4]}
89... Ke1 {[%clk 0:00:03]} 90. Ra1+ {[%clk 0:00:06.7]} 90... Kd2 {[%clk
0:00:03]} 91. Ra2+ {[%clk 0:00:06.8]} 91... Ke1 {[%clk 0:00:03.2]} 92. Ra7
{[%clk 0:00:06.4]} 92... Kd2 {[%clk 0:00:02.6]} 93. Ra2+ {[%clk 0:00:05.7]}
93... Ke1 {[%clk 0:00:02.7]} 94. Ra1+ {[%clk 0:00:05.6]} 94... Kd2 {[%clk
0:00:03.2]} 95. Ra7 {[%clk 0:00:05.7]} 95... Ke1 {[%clk 0:00:03.3]} 96. Ke3
{[%clk 0:00:06.1]} 96... Re2+ {[%clk 0:00:03.3]} 97. Kd3 {[%clk 0:00:06.5]}
97... Rd2+ {[%clk 0:00:03.7]} 98. Ke3 {[%clk 0:00:06.7]} 98... Re2+ {[%clk
0:00:03.8]} 99. Kf4 {[%clk 0:00:06.5]} 99... Rf2+ {[%clk 0:00:03.9]} 100. Bf3
{[%clk 0:00:06.5]} 100... Kd2 {[%clk 0:00:02.3]} 101. Rd7+ {[%clk 0:00:06]}
101... Kc3 {[%clk 0:00:02.5]} 102. Ke3 {[%clk 0:00:06.4]} 102... Rb2 {[%clk
0:00:02.1]} 103. Rc7+ {[%clk 0:00:06.6]} 103... Kb4 {[%clk 0:00:02.6]} 104. Be4
{[%clk 0:00:06.5]} 104... Rb3+ {[%clk 0:00:02.5]} 105. Kd4 {[%clk 0:00:06.9]}
105... Rb2 {[%clk 0:00:02.8]} 106. Bd5 {[%clk 0:00:06.2]} 106... Rd2+ {[%clk
0:00:02.6]} 107. Ke5 {[%clk 0:00:05.9]} 107... Re2+ {[%clk 0:00:03]} 108. Kd6
{[%clk 0:00:06.1]} 108... Rb2 {[%clk 0:00:02.4]} 109. Rb7+ {[%clk 0:00:05.7]}
109... Kc3 {[%clk 0:00:02.9]} 110. Rc7+ {[%clk 0:00:05.9]} 110... Kd2 {[%clk
0:00:03.3]} 111. Ke5 {[%clk 0:00:06.2]} 111... Rc2 {[%clk 0:00:03.6]} 112. Rg7
{[%clk 0:00:05.4]} 112... Rb2 {[%clk 0:00:03.7]} 113. Rg2+ {[%clk 0:00:04.4]}
113... Kc3 {[%clk 0:00:04.1]} 114. Rxb2 {[%clk 0:00:05]} 114... Kxb2 {[%clk
0:00:04.2]} 1/2-1/2